Cogmind - Beta 9.4 @@@ ROGUE MODE // 2020.02.23 @ 14:31:12 Player: Ape Result: Self-destructed Performance ------------- Evolutions (1) 500 Regions Visited (3) 600 Robots Destroyed (10) 50 Value Destroyed (244) 244 Prototype IDs (2) 40 Alien Tech Used (0) 0 Bonus (0) 0 TOTAL SCORE: 1434 Bonus ------- None Cogmind --------- Core Integrity 384/400 Matter 184/300 Energy 125/125 System Corruption 0% Temperature Cool (0) Movement Hovering (56) Location -9/Materials Parts ------- > --- POWER (1) -------- Light Ion Engine > --- PROPULSION (4) --- Improved Hover Unit Improved Hover Unit > --- UTILITY (2) ------ Small Storage Unit Targeting Computer > --- WEAPON (2) ------- Assault Rifle > --- INVENTORY (6) ---- Ion Engine Aluminum Leg Aluminum Leg Large Storage Unit Large Storage Unit Hardened Light Armor Plating Peak State ------------ > --- POWER ------------ Ion Engine > --- PROPULSION ------- Improved Hover Unit Improved Hover Unit > --- UTILITY ---------- Small Storage Unit Hardened Light Armor Plating > --- WEAPON ----------- Medium Laser Assault Rifle > --- INVENTORY -------- Ion Engine Aluminum Leg Aluminum Leg Hardened Light Armor Plating Hardened Light Armor Plating Hardened Light Armor Plating [Rating: 10] Favorites ----------- Power Light Ion Engine Engine Light Ion Engine Propulsion Improved Hover Unit Wheel Compact Wheel Hover Unit Improved Hover Unit Utility Small Storage Unit Storage Small Storage Unit Processor Targeting Computer Protection Hardened Light Armor Plating Weapon Assault Rifle Energy Gun Medium Laser Ballistic Gun Assault Rifle Build | -11 -10 -10 -9 ------- Run | Scr Mat Min Mat Slots Evolved 2 | . . . 2 Power . | . . . . Propulsion 2 | . . . 2 Utility . | . . . . Weapon . | . . . . Parts Attached 13 | 6 7 . . Power 3 | 1 2 . . Engine 3 | 1 2 . . Core . | . . . . Reactor . | . . . . Propulsion 4 | 2 2 . . Treads . | . . . . Leg . | . . . . Wheel 2 | 2 . . . Hover 2 | . 2 . . Flight . | . . . . Utility 3 | 1 2 . . Device . | . . . . Storage 1 | 1 . . . Processor 1 | . 1 . . Hackware . | . . . . Protection 1 | . 1 . . Artifact . | . . . . Weapon 3 | 2 1 . . Energy Gun 2 | 1 1 . . Energy Cannon . | . . . . Ballistic Gun 1 | 1 . . . Ballistic Cannon . | . . . . Launcher . | . . . . Special Weapon . | . . . . Impact Weapon . | . . . . Slashing Weapon . | . . . . Piercing Weapon . | . . . . Special Melee Weapon . | . . . . Unidentified Prototypes . | . . . . Parts Lost 2 | . 1 1 . Power . | . . . . Propulsion . | . . . . Utility . | . . . . Weapon 2 | . 1 1 . Highest Loss Streak 1 | . 1 1 . Average Slot Usage (%) 95 | . 94 98 66 Engine 13 | . 14 14 11 Wheel 6 | . 10 . . Hover 21 | . 17 28 22 Storage 13 | . 14 14 11 Processor 10 | . 7 14 11 Energy Gun 12 | . 14 12 . Ballistic Gun 13 | . 14 14 11 Naked Turns . | . . . . Heaviest Build 18 | 13 18 11 9 Greatest Support 32 | 32 32 16 16 Greatest Overweight (x) 1 | . 1 . . Average Overweight (x) . | . . . . Largest Inventory Capacity 6 | 6 6 6 6 Average Capacity 5 | 4 6 6 6 Most Carried 6 | 6 6 6 6 Average Carried 5 | 3 5 6 6 Final Capacity 6 | 6 6 6 6 Final Carried 6 | 6 6 6 6 Class Distribution -------------------- 100% | Mutant Dominant Class ---------------- Mutant | -10/Materials Mutant | -10/Mines Mutant | -9/Materials Resources | -11 -10 -10 -9 ----------- Run | Scr Mat Min Mat Matter Collected 330 | 196 44 90 . Remotely . | . . . . Salvage Created 267 | . 145 122 . Parts 14 | . 7 7 . Haulers Intercepted . | . . . . Recyclers Shooed . | . . . . Parts Field Recycled . | . . . . Retrieved Matter . | . . . . Parts Self-Destructed . | . . . . Prevented . | . . . . Kills | -11 -10 -10 -9 ------- Run | Scr Mat Min Mat Combat Hostiles Destroyed 10 | . 6 4 . Guns 10 | . 6 4 . Classes Destroyed 2 | . 2 . . Swarmer 4 | . 3 1 . Grunt 6 | . 3 3 . Best Kill Streak 3 | . 3 3 . Combat Bots Only 3 | . 3 3 . Max Kills in Single Turn 1 | . 1 1 . Gunslinging . | . . . . Exploded . | . . . . Melee . | . . . . Uniques/NPCs Destroyed . | . . . . Combat | -11 -10 -10 -9 -------- Run | Scr Mat Min Mat Damage Taken 461 | . 214 210 37 Core 117 | . 53 48 16 Absorbed by Shields . | . . . . Core Remaining (%) 79 | 100 . 59 . Volleys Fired 42 | . 28 12 2 Largest 2 | . 2 2 1 Hottest 70 | . 70 70 20 Shots Fired 64 | . 40 22 2 Gun 64 | . 40 22 2 Cannon . | . . . . Launcher . | . . . . Special . | . . . . Kinetic 42 | . 28 12 2 Thermal 22 | . 12 10 . Explosive . | . . . . Electromagnetic . | . . . . Robot Hit Streak 13 | . 7 13 . Robot Miss Streak 5 | . 5 1 2 Penetration Max . | . . . . Secondary Targets 1 | . . 1 . Max Gunslinging Chain 1 | . . 1 . Shots Hit Robots 39 | . 20 19 . Core Hits 15 | . 8 7 . Critical Hits 2 | . 1 1 . Critical Kills 2 | . 1 1 . Critical Parts Destroyed . | . . . . Melee Attacks . | . . . . Impact . | . . . . Slashing . | . . . . Piercing . | . . . . Sneak Attacks . | . . . . Combat Hostiles . | . . . . Follow-up Attacks . | . . . . Damage Inflicted 506 | . 255 251 . Guns 506 | . 255 251 . Cannons . | . . . . Explosions . | . . . . Melee . | . . . . Ramming . | . . . . Kinetic 289 | . 153 136 . Thermal 217 | . 102 115 . Explosive . | . . . . Electromagnetic . | . . . . Impact . | . . . . Slashing . | . . . . Piercing . | . . . . Highest Corruption . | . . . . Average Corruption . | . . . . Corruption Purged . | . . . . Overload Shots . | . . . . Overflow Damage . | . . . . Projectiles . | . . . . Explosions . | . . . . Melee . | . . . . Knockbacks . | . . . . Impact . | . . . . Kinetic . | . . . . Secondary . | . . . . Self-Inflicted Damage . | . . . . Shots . | . . . . Rammed . | . . . . Targets Rammed . | . . . . Kicked . | . . . . Crushed . | . . . . Highest Temperature 191 | . 105 191 . Average Temperature 66 | . 38 95 . Received Heat Transfer 114 | . 18 96 . Siege Activations . | . . . . Robots Corrupted . | . . . . Combat Hostiles . | . . . . Parts Fried . | . . . . Impact Corruptions . | . . . . Robots Melted . | . . . . Combat Hostiles . | . . . . Parts Melted . | . . . . Heat Transferred 629 | . 296 333 . Parts Sabotaged . | . . . . Parts Stolen . | . . . . Parts Stripped . | . . . . Power Chain Reactions . | . . . . Missiles Intercepted . | . . . . Alert | -11 -10 -10 -9 ------- Run | Scr Mat Min Mat Peak Influence 152 | . 148 152 59 Average Influence 72 | . 61 114 59 Maximum Alert Level . | . . . . Low Security (%) 100 | 100 100 100 100 Level 1 . | . . . . Level 2 . | . . . . Level 3 . | . . . . Level 4 . | . . . . Level 5 . | . . . . High Security . | . . . . Max Security . | . . . . Squads Dispatched 2 | . 1 1 . Investigation 2 | . 1 1 . Extermination . | . . . . Reinforcement . | . . . . Assault . | . . . . Garrison . | . . . . Intercept . | . . . . Construction Impeded . | . . . . Haulers Reinforced . | . . . . Stealth | -11 -10 -10 -9 --------- Run | Scr Mat Min Mat Distress Signals 1 | . 1 . . Communications Jammed . | . . . . Distress Signals . | . . . . Times Spotted 23 | . 8 12 3 Peak Tracking Total 5 | . 5 5 3 Tactical Retreats 3 | . 1 2 . Traps | -11 -10 -10 -9 ------- Run | Scr Mat Min Mat Traps Triggered 1 | . 1 . . Indirectly . | . . . . Trap Hack Attempts . | . . . . Triggered . | . . . . Disarmed . | . . . . Reprogrammed . | . . . . Reused . | . . . . Traps Extracted . | . . . . Installed . | . . . . Triggered . | . . . . Machines | -11 -10 -10 -9 ---------- Run | Scr Mat Min Mat Machines Disabled . | . . . . Max in Single Turn . | . . . . Machines Sabotaged . | . . . . Garrisons Compromised . | . . . . Overloaded Fab Kills . | . . . . Fab Network Shutdowns . | . . . . Hacking | -11 -10 -10 -9 --------- Run | Scr Mat Min Mat Machines Accessed 2 | . 1 1 . Terminals 2 | . 1 1 . Fabricators . | . . . . Repair Stations . | . . . . Recycling Units . | . . . . Scanalyzers . | . . . . Garrison Access . | . . . . Total Hacks 12 | . 3 9 . Successful 6 | . 2 4 . Failed 5 | . 1 4 . Catastrophic 1 | . 1 . . Database Lockouts 1 | . . 1 . Manual 11 | . 2 9 . Terminals 12 | . 3 9 . Fabricators . | . . . . Repair Stations . | . . . . Recycling Units . | . . . . Scanalyzers . | . . . . Garrison Access . | . . . . Terminal Hacks 4 | . 1 3 . Prototype ID Bank 2 | . . 2 . Level Access Points 1 | . . 1 . Zone Layout 1 | . 1 . . Fabricator Hacks . | . . . . Repair Station Hacks . | . . . . Recycling Unit Hacks . | . . . . Scanalyzer . | . . . . Garrison Access Hacks . | . . . . Unauthorized Hacks 5 | . 2 3 . Terminals 2 | . 1 1 . Track 2 | . 1 1 . Fabricators . | . . . . Repair Stations . | . . . . Recycling Units . | . . . . Scanalyzers . | . . . . Garrison Access . | . . . . Data Cores Recovered . | . . . . Used . | . . . . Hacking Detections 2 | . 1 1 . Full Trace Events . | . . . . Feedback Events . | . . . . Feedback Blocked . | . . . . Robot Schematics Acquired . | . . . . Robots Built . | . . . . Matter . | . . . . Time . | . . . . Total Robot Build Rating . | . . . . Part Schematics Acquired . | . . . . Parts Built . | . . . . Matter . | . . . . Time . | . . . . Total Part Build Rating . | . . . . Parts Repaired . | . . . . Time . | . . . . Parts Recycled . | . . . . Recycled Matter . | . . . . Retrieved Matter . | . . . . Retrieved Components . | . . . . Parts Scanalyzed . | . . . . Part Schematics Acquired . | . . . . Parts Damaged . | . . . . Bothacking | -11 -10 -10 -9 ------------ Run | Scr Mat Min Mat Used RIF Installer . | . . . . Robots Hacked . | . . . . Non-combat . | . . . . Combat . | . . . . Robot Hacks Applied . | . . . . Relay Couplers Released . | . . . . Robots Rewired . | . . . . Allies Hacked . | . . . . Hacks Repelled . | . . . . Allies | -11 -10 -10 -9 -------- Run | Scr Mat Min Mat Total Allies . | . . . . Largest Group . | . . . . Highest-Rated Group . | . . . . Highest-Rated Ally . | . . . . Total Orders . | . . . . Ally Attacks . | . . . . Total Damage . | . . . . Kills . | . . . . Allies Corrupted . | . . . . Allies Melted . | . . . . Intel | -11 -10 -10 -9 ------- Run | Scr Mat Min Mat Robot Analysis Total . | . . . . Derelict Logs Recovered 1 | . . 1 . Drone Launches . | . . . . Drone Recoveries . | . . . . Exploration | -11 -10 -10 -9 ------------- Run | Scr Mat Min Mat Turns Passed 443 | 52 227 155 9 Spaces Moved 475 | 39 214 214 8 Core 9 | 9 . . . Treads . | . . . . Legs . | . . . . Wheels 72 | 30 42 . . Hover 394 | . 172 214 8 Flight . | . . . . Fastest Speed 50 | 50 56 56 56 Average Speed 62 | 88 64 56 56 Slowest Speed 110 | 100 110 56 56 Overloaded Moves . | . . . . Propulsion Burnouts . | . . . . Robots Hopped . | . . . . Cave-ins Triggered . | . . . . Exploration Rate (%) 19 | 3 39 32 3 Regions Visited 3 Branch Regions 1 Pre-discovered Areas . | . . . . Known Exits Taken 1 | . . 1 . Unknown Exits Taken 2 | 1 1 . . Scrap Searched . | . . . . Spaces Dug . | . . . . Terrain Destroyed . | . . . . Melee . | . . . . Projectile . | . . . . AOE . | . . . . Actions | -11 -10 -10 -9 --------- Run | Scr Mat Min Mat Total 556 | 56 264 226 10 Wait 1 | . . 1 . Move 472 | 38 213 213 8 Hop . | . . . . Pick Up 17 | 11 6 . . Fast Attach 7 | 2 5 . . Attach 5 | 4 1 . . Detach 1 | . 1 . . Swap 1 | . 1 . . Drop 10 | 1 9 . . Fire 42 | . 28 12 2 Melee . | . . . . Ram . | . . . . Kick . | . . . . Crush . | . . . . Escape Stasis . | . . . . Rewire . | . . . . Trap . | . . . . Miscellaneous . | . . . . Route ------- -11/Scrapyard -10/Materials (discovered 3 exits: *Mat / *Min x2) -10/Mines (discovered 2 exits: *Mat x2) -9/Materials History --------- Turn | Location | Event 19 | -11/Scrapyard | Discovered new exit (range 16) 53 | -11/Scrapyard | Entered Materials 217 | -10/Materials | Discovered new exit (range 16) 272 | -10/Materials | Discovered new exit (range 16) 280 | -10/Materials | Discovered new exit (range 16) 280 | -10/Materials | Entered Mines 282 | -10/Mines | Identified exit to Materials 282 | -10/Mines | Central database locked down 315 | -10/Mines | Build established: Mutant 319 | -10/Mines | Learned Materials emergency access door positions 435 | -10/Mines | Entered Materials 435 | -9/Materials | Evolved 2 slots: Propulsion x2 444 | -9/Materials | Self-destructed Last Messages --------------- 00287_ K-01 Serf cleans the Seismic Survey Station. 00288_ K-01 Serf collects debris. 00290_ K-01 Serf cleans the Seismic Survey Station. 00292_ K-01 Serf collects debris. 00319_ Acquired derelict log, extracted data. Data stored: Materials emergency access points. 00332_ G-34 Mercenary destroyed. 00332_ Switching to secondary target: G-34 Mercenary. 00338_ G-34 Mercenary destroyed. 00355_ Acquired 38 matter. 00356_ Acquired 42 matter. 00415_ Seismic Survey Station disabled. 00418_ Med. Laser destroyed. 00431_ S-10 Pest suffers critical hit. 00431_ S-10 Pest destroyed. 00433_ Acquired 10 matter. PARAMETERS=PROPULSION_2 LOCATION=MATERIALS GOAL=ESCAPE Loading Materials emergency access points (x4)... Map ----- +----------------------------------------------------+ | ???????????????????????????????????????? | | ???????????????????????????????????????? | | ???????????????????????????????????????? | | ???????????????????????????????????????? | | ???????????????????????????????????????? | | ???????????????????????????????????????? | | ???????????????????????????????????????? | | ???????????????????????????????????????? | | ???????????????????????????????????????? | | ???????????????????????????????????????? | | ????????? ? ???????????????????????? | | ????????? !! ???????????????????????? | | ????????? !! "??????????????????????? | | ????????# ""?????????????????????? | | ????????# ??????????????????????? | | ????????+ ???#?????????????????? | | ????????# """ """ #?????????????????? | | ???????## """ """ #?????????????????? | | ???????# """ """ #?????????????????? | | ???????# #?????????????????? | | ???????# #?????????????????? | | ???????# """ """ #?????????????????? | | ?????### """ """ ###### s?????????? | | ?????# """ """ s ????????? | | ?????# s ????????? | | ?????# @ ????????? | | ?????###########+#######???????????????? | | ???????????????????????????????????????? | | ???????????????????????????????????????? | | ???????????????????????????????????????? | | ???????????????????????????????????????? | | ???????????????????????????????????????? | | ???????????????????????????????????????? | | ???????????????????????????????????????? | | ???????????????????????????????????????? | | ???????????????????????????????????????? | | ???????????????????????????????????????? | | ???????????????????????????????????????? | | ???????????????????????????????????????? | | ???????????????????????????????????????? | | ???????????????????????????????????????? | | ???????????????????????????????????????? | | ???????????????????????????????????????? | | ???????????????????????????????????????? | | ???????????????????????????????????????? | | ???????????????????????????????????????? | | ???????????????????????????????????????? | | ???????????????????????????????????????? | | ???????????????????????????????????????? | | ???????????????????????????????????????? | +----------------------------------------------------+ Best States ------------- Heat Dissipation 28 Energy Generation 10 Energy Capacity 250 Matter Stores 236 Matter Capacity 300 Sight Range 16 Terrain Scan Density 10 Armor Coverage 150 Evasion (%) 53 Targeting Accuracy 5 Item Schematics ----------------- None Robot Schematics ------------------ None Fabricated ------------ Nothing Alien Tech Used ----------------- None Achievements -------------- None Challenges ------------ None Game ------ Seed RelayPhaseSword Manual? 0 Play Time 00:10:00 Cumulative 184.8 hours Start 2020.02.23 @ 14:20:47 End 2020.02.23 @ 14:31:12 Sessions 1 Manual Loads 0 Difficulty Rogue Special Mode None Game No. 90 Rogue 90 Adventurer 0 Explorer 0 Win Type - Total 9 Types 6/0/3/0/0/0/0 Lore% 71 Gallery% 80 Achievement% 59 Wizard Run 0 Options --------- ASCII 1 Keyboard 1 Movement Numpad Keybinds 0 Fullscreen 2 Font 36/TerminusFine Map View 76x50 Tactical HUD 1 Map Filters NONE Filters NONE Steam 1 RUN: d2a9e8b0-3ceb-4a1e-bf9c-6f7c8679d01e